Cogmind - Beta 13 @@@ ROGUE MODE // 2024.05.23 @ 01:15:19 Player: Some Pennies Result: Destroyed by D-53 Grenadier with Mini Grenade Launcher Performance ------------- Evolutions (0) 0 Regions Visited (4) 800 Robots Destroyed (40) 200 Value Destroyed (795) 795 Prototype IDs (14) 280 Alien Tech Used (0) 0 Bonus (-45) -45 TOTAL SCORE: 2030 Bonus ------- Friendly Fire -45 Cogmind --------- Core Integrity 0/250 Matter 257/300 Energy 138/265 System Corruption 0% Temperature Cool (0) Movement Treading (320) Ox2 Location -9/Mines Parts ------- > --- POWER (1) -------- Improved Ion Engine > --- PROPULSION (2) --- Light Treads > --- UTILITY (2) ------ High-capacity Storage Unit Structural Scanner > --- WEAPON (2) ------- Rocket Launcher > --- INVENTORY (20) --- Light Nuclear Core Light Nuclear Core Improved Heat Sink Improved Heat Sink Improved Terrain Scanner Seismic Detector Transport Network Coupler ECM Suite Hacking Suite Datajack Mining Laser Peak State ------------ > --- POWER ------------ Improved Ion Engine > --- PROPULSION ------- Light Treads Light Treads > --- UTILITY ---------- High-capacity Storage Unit Structural Scanner > --- WEAPON ----------- Shotgun Shotgun > --- INVENTORY -------- Improved Ion Engine Improved Ion Engine Light Nuclear Core Light Treads Light Treads Improved Heat Sink Improved Heat Sink Large Storage Unit Improved Terrain Scanner Seismic Detector Transport Network Coupler ECM Suite Hacking Suite EMP Blaster EMP Blaster Datajack Mining Laser [Rating: 13] Favorites ----------- Power Improved Ion Engine Engine Improved Ion Engine Propulsion Light Treads Treads Light Treads Wheel Compact Wheel Utility Structural Scanner Device Structural Scanner Storage High-capacity Storage Unit Weapon Shotgun Ballistic Gun Shotgun Launcher Rocket Launcher Special Weapon Mining Laser Special Melee Weapon Datajack Build | -11 -10 -10 -10 -9 ------- Run | Yrd Mat Min Exi Min Slots Evolved . | . . . . . Power . | . . . . . Propulsion . | . . . . . Utility . | . . . . . Weapon . | . . . . . Parts Attached 28 | 7 11 2 3 5 Power 6 | 1 2 1 . 2 Engine 6 | 1 2 1 . 2 Core . | . . . . . Reactor . | . . . . . Propulsion 5 | 2 1 1 . 1 Treads 4 | 1 1 1 . 1 Leg . | . . . . . Wheel 1 | 1 . . . . Hover . | . . . . . Flight . | . . . . . Utility 7 | 2 4 . 1 . Device 2 | 1 1 . . . Storage 5 | 1 3 . 1 . Processor . | . . . . . Hackware . | . . . . . Protection . | . . . . . Artifact . | . . . . . Weapon 10 | 2 4 . 2 2 Energy Gun . | . . . . . Energy Cannon . | . . . . . Ballistic Gun 7 | 2 3 . 1 1 Ballistic Cannon . | . . . . . Launcher 1 | . . . . 1 Special Weapon 1 | . 1 . . . Impact Weapon . | . . . . . Slashing Weapon . | . . . . . Piercing Weapon . | . . . . . Special Melee Weapon 1 | . . . 1 . Unidentified Prototypes . | . . . . . Parts Lost 6 | . . 1 . 5 Power 1 | . . . . 1 Propulsion 3 | . . 1 . 2 Utility . | . . . . . Weapon 2 | . . . . 2 Highest Loss Streak 4 | . . 1 . 4 To Critical Strikes . | . . . . . Average Slot Usage (%) 99 | . 99 100 100 95 Engine 13 | . 14 14 14 12 Treads 27 | . 26 28 28 25 Device 14 | . 14 14 14 14 Storage 14 | . 14 14 14 14 Ballistic Gun 23 | . 25 28 15 23 Special Melee Weapon 3 | . . . 12 . Naked Turns . | . . . . . Heaviest Build 55 | 15 54 54 54 55 Greatest Support 40 | 16 40 40 40 40 Greatest Overweight (x) 2 | . 1 1 1 2 Average Overweight (x) . | . . 1 1 1 Largest Inventory Capacity 20 | 8 20 20 20 20 Average Capacity 18 | 7 16 20 20 20 Most Carried 17 | 5 16 17 16 14 Average Carried 13 | 2 10 15 14 12 Final Capacity 20 | 8 20 20 20 20 Final Carried 16 | 4 16 15 14 11 Class Distribution -------------------- 100% | Mutant Dominant Class ---------------- Mutant | -10/Materials Mutant | -10/Mines Mutant | -10/Exiles Mutant | -9/Mines Resources | -11 -10 -10 -10 -9 ----------- Run | Yrd Mat Min Exi Min Matter Collected 1154 | 296 483 298 . 77 Remotely . | . . . . . Salvage Created 1442 | 124 646 543 . 129 Parts 93 | 12 47 27 . 7 Haulers Intercepted 2 | . 2 . . . Recyclers Shooed 2 | 1 1 . . . Parts Field Recycled . | . . . . . Retrieved Matter . | . . . . . Parts Self-Destructed . | . . . . . Prevented . | . . . . . Kills | -11 -10 -10 -10 -9 ------- Run | Yrd Mat Min Exi Min Combat Hostiles Destroyed 28 | . 10 10 . 8 Guns 23 | . 10 10 . 3 AOE 5 | . . . . 5 Classes Destroyed 11 | 2 5 2 . 2 Worker 1 | . . 1 . . Builder 1 | . . 1 . . Tunneler 2 | 2 . . . . Hauler 2 | . 2 . . . Recycler 7 | 1 3 3 . . Operator 1 | . 1 . . . Watcher 3 | . 3 . . . Swarmer 8 | . 5 3 . . Grunt 14 | . 5 7 . 2 Duelist 1 | . . . . 1 Assembled 5 | . . . . 5 Best Kill Streak 8 | 2 8 5 . 5 Combat Bots Only 5 | . 3 4 . 5 Max Kills in Single Turn 3 | 1 1 1 . 3 Gunslinging 1 | . . . . 1 Exploded 3 | . . . . 3 Melee . | . . . . . Uniques/NPCs Destroyed . | . . . . . Combat | -11 -10 -10 -10 -9 -------- Run | Yrd Mat Min Exi Min Hostile Shots Fired 141 | . 61 42 . 38 Missed 34 | . 16 8 . 10 Damage Taken 1478 | . 435 381 . 662 Core 255 | . 97 38 . 120 Absorbed by Shields . | . . . . . Core Remaining (%) 100 | 100 . . . . Volleys Fired 108 | 6 65 30 . 7 Largest 2 | 2 2 2 . 2 Hottest 100 | 40 100 46 . 46 Shots Fired 212 | 12 129 60 . 11 Gun 208 | 12 128 60 . 8 Cannon . | . . . . . Launcher 3 | . . . . 3 Special 1 | . 1 . . . Kinetic 208 | 12 128 60 . 8 Thermal 1 | . 1 . . . Explosive 3 | . . . . 3 Electromagnetic . | . . . . . Robot Hit Streak 12 | 5 6 12 . 5 Robot Miss Streak 6 | 2 6 3 . 3 Penetration Max . | . . . . . Secondary Targets 3 | . 2 . . 1 Max Gunslinging Chain 1 | . 1 . . 1 Shots Hit Robots 140 | 7 74 48 4 7 Core Hits 94 | 4 30 29 . 31 Critical Kills 1 | . 1 . . . Critical Parts Destroyed 1 | . 1 . . . Critical Strikes 2 | . 2 . . . Destroy 2 | . 2 . . . Melee Attacks 4 | . . . 4 . Impact . | . . . . . Slashing . | . . . . . Piercing . | . . . . . Sneak Attacks 4 | . . . 4 . Combat Hostiles . | . . . . . Follow-up Attacks . | . . . . . Damage Inflicted 2460 | 79 973 728 . 680 Guns 1932 | 79 973 728 . 152 Cannons . | . . . . . Explosions 528 | . . . . 528 Melee . | . . . . . Ramming . | . . . . . Kinetic 1932 | 79 973 728 . 152 Thermal . | . . . . . Explosive 528 | . . . . 528 Electromagnetic . | . . . . . Impact . | . . . . . Slashing . | . . . . . Piercing . | . . . . . Highest Corruption . | . . . . . Average Corruption . | . . . . . Corruption Purged . | . . . . . Corruption Blocked . | . . . . . Overload Shots . | . . . . . Overflow Damage 4 | . . . . 4 Projectiles . | . . . . . Explosions 4 | . . . . 4 Melee . | . . . . . Knockbacks . | . . . . . Impact . | . . . . . Kinetic . | . . . . . Secondary . | . . . . . Self-Inflicted Damage 5 | . . . . 5 Shots 1 | . . . . 1 Rammed . | . . . . . Targets Rammed . | . . . . . Kicked . | . . . . . Crushed . | . . . . . Highest Temperature 20 | . 20 19 . 8 Average Temperature 6 | . 5 6 . 3 Received Heat Transfer 371 | . 141 180 . 50 Siege Activations . | . . . . . Robots Corrupted . | . . . . . Combat Hostiles . | . . . . . Parts Fried . | . . . . . Impact Corruptions . | . . . . . Robots Melted . | . . . . . Combat Hostiles . | . . . . . Parts Melted . | . . . . . Heat Transferred . | . . . . . Parts Sabotaged . | . . . . . Parts Stolen . | . . . . . Parts Stripped . | . . . . . Power Chain Reactions . | . . . . . Alert | -11 -10 -10 -10 -9 ------- Run | Yrd Mat Min Exi Min Peak Influence 300 | 15 300 115 . 80 Initial 9 | . 9 . . . Average 65 | 7 107 35 . 66 Maximum Alert Level 1 | . 1 . . . Low Security (%) 92 | 100 81 100 . 100 Level 1 7 | . 18 . . . Level 2 . | . . . . . Level 3 . | . . . . . Level 4 . | . . . . . Level 5 . | . . . . . High Security . | . . . . . Max Security . | . . . . . Squads Dispatched 2 | . 2 . . . Investigation 1 | . 1 . . . Extermination . | . . . . . Reinforcement 1 | . 1 . . . Assault . | . . . . . Garrison . | . . . . . Intercept . | . . . . . Searches Triggered . | . . . . . Construction Impeded . | . . . . . Haulers Reinforced . | . . . . . Active Scanning Responses . | . . . . . Cargo Convoy Interrupts . | . . . . . Stealth | -11 -10 -10 -10 -9 --------- Run | Yrd Mat Min Exi Min Distress Signals 2 | . 2 . . . Communications Jammed . | . . . . . Distress Signals . | . . . . . Times Spotted 52 | . 15 12 . 25 Peak Tracking Total 20 | . 4 3 . 20 Tactical Retreats . | . . . . . Traps | -11 -10 -10 -10 -9 ------- Run | Yrd Mat Min Exi Min Traps Triggered . | . . . . . Indirectly . | . . . . . Trap Hack Attempts . | . . . . . Triggered . | . . . . . Disarmed . | . . . . . Reprogrammed . | . . . . . Reused . | . . . . . Traps Extracted . | . . . . . Installed . | . . . . . Triggered 1 | . . 1 . . Machines | -11 -10 -10 -10 -9 ---------- Run | Yrd Mat Min Exi Min Machines Disabled 1 | . 1 . . . Max in Single Turn 1 | . 1 . . . Machines Repaired . | . . . . . Machines Dismantled . | . . . . . Machines Sabotaged . | . . . . . Overloaded Fab Kills . | . . . . . Hacking | -11 -10 -10 -10 -9 --------- Run | Yrd Mat Min Exi Min Machines Accessed 8 | . 7 . 1 . Terminals 7 | . 7 . . . Fabricators . | . . . . . Repair Stations . | . . . . . Recycling Units . | . . . . . Scanalyzers . | . . . . . Garrison Access . | . . . . . Total Hacks 19 | . 18 . 1 . Successful 7 | . 6 . 1 . Failed 12 | . 12 . . . Catastrophic . | . . . . . Database Lockouts . | . . . . . Manual 6 | . 6 . . . Terminals 18 | . 18 . . . Fabricators . | . . . . . Repair Stations . | . . . . . Recycling Units . | . . . . . Scanalyzers . | . . . . . Garrison Access . | . . . . . Terminal Hacks 7 | . 6 . 1 . Record 1 | . . . 1 . Robot Analysis 3 | . 3 . . . Locate Traps 2 | . 2 . . . Zone Layout 1 | . 1 . . . Fabricator Hacks . | . . . . . Repair Station Hacks . | . . . . . Recycling Unit Hacks . | . . . . . Scanalyzer . | . . . . . Garrison Access Hacks . | . . . . . Unauthorized Hacks . | . . . . . Terminals . | . . . . . Fabricators . | . . . . . Repair Stations . | . . . . . Recycling Units . | . . . . . Scanalyzers . | . . . . . Garrison Access . | . . . . . Data Cores Recovered . | . . . . . Used . | . . . . . Hacking Detections 7 | . 7 . . . Full Trace Events 3 | . 3 . . . Feedback Events . | . . . . . Feedback Blocked . | . . . . . Robot Schematics Acquired . | . . . . . Robots Built . | . . . . . Authchips . | . . . . . Time . | . . . . . Total Robot Build Rating . | . . . . . Part Schematics Acquired . | . . . . . Parts Built . | . . . . . Authchips . | . . . . . Time . | . . . . . Total Part Build Rating . | . . . . . Parts Repaired . | . . . . . Time . | . . . . . Parts Recycled . | . . . . . Recycled Matter . | . . . . . Retrieved Matter . | . . . . . Retrieved Components . | . . . . . Parts Scanalyzed . | . . . . . Part Schematics Acquired . | . . . . . Parts Damaged . | . . . . . Bothacking | -11 -10 -10 -10 -9 ------------ Run | Yrd Mat Min Exi Min Used RIF Installer . | . . . . . Robots Hacked 4 | . . . 4 . Non-combat 3 | . . . 3 . Combat 1 | . . . 1 . Robot Hacks Applied 4 | . . . 4 . parse_system 4 | . . . 4 . Relay Couplers Released . | . . . . . Fabnet Peak Effective % . | . . . . . Robots Rewired . | . . . . . Allies Hacked . | . . . . . Hacks Repelled . | . . . . . Allies | -11 -10 -10 -10 -9 -------- Run | Yrd Mat Min Exi Min Total Allies 1 | . . 1 . . Largest Group 1 | . . 1 . . Highest-Rated Group 31 | . . 31 . . Highest-Rated Ally 31 | . . 31 . . Total Orders . | . . . . . Ally Attacks 5 | . . 5 . . Total Damage 102 | . . 102 . . Kills . | . . . . . Allies Corrupted . | . . . . . Allies Melted . | . . . . . Intel | -11 -10 -10 -10 -9 ------- Run | Yrd Mat Min Exi Min Robot Analysis Total 3 | . 3 . . . Derelict Logs Recovered 2 | . . 2 . . Drone Launches . | . . . . . Drone Recoveries . | . . . . . Exploration | -11 -10 -10 -10 -9 ------------- Run | Yrd Mat Min Exi Min Turns Passed 4296 | 99 1277 1633 1165 122 Spaces Moved 1831 | 64 606 640 481 40 Core 1 | 1 . . . . Treads 1695 | . 534 640 481 40 Legs . | . . . . . Wheels 135 | 63 72 . . . Hover . | . . . . . Flight . | . . . . . Fastest Speed 50 | 50 100 240 240 240 Average Speed 212 | 99 170 240 240 242 Slowest Speed 320 | 100 240 240 240 320 Overloaded Moves . | . . . . . Propulsion Burnouts . | . . . . . Robots Hopped . | . . . . . Cave-ins Triggered . | . . . . . Exploration Rate (%) 58 | 4 89 99 85 17 Regions Visited 4 Branch Regions 3 Pre-discovered Areas 2 | . . 1 1 . Known Exits Taken . | . . . . . Unknown Exits Taken 4 | 1 1 1 1 . Scrap Searched 2 | . . 1 . 1 Spaces Dug 1 | . 1 . . . Terrain Destroyed 35 | . 1 . . 34 Melee . | . . . . . Projectile 1 | . 1 . . . AOE 34 | . . . . 34 Terrain Rammed . | . . . . . Walls Destroyed . | . . . . . Machines Disabled . | . . . . . Actions | -11 -10 -10 -10 -9 --------- Run | Yrd Mat Min Exi Min Total 2032 | 87 721 680 490 54 Wait 12 | . 11 1 . . Move 1827 | 63 605 639 480 40 Hop . | . . . . . Pick Up 37 | 11 20 4 1 1 Fast Attach . | . . . . . Attach 15 | 7 2 2 . 4 Detach . | . . . . . Swap 13 | . 9 . 3 1 Drop 16 | . 9 4 2 1 Fire 108 | 6 65 30 . 7 Melee 4 | . . . 4 . Ram . | . . . . . Kick . | . . . . . Crush . | . . . . . Escape Stasis . | . . . . . Rewire . | . . . . . Trap . | . . . . . Miscellaneous . | . . . . . Route ------- -11/Scrapyard -10/Materials (discovered 4 exits: [*Mat x3] / [*Min]) -10/Mines (discovered 4 exits: [*Mat x2] / *Exi / [*Sub]) -10/Exiles -9/Mines History --------- Turn | Location | Event 12 | -11/Scrapyard | Discovered new exit (range 15) 100 | -11/Scrapyard | Entered Materials 302 | -10/Materials | Build established: Mutant 551 | -10/Materials | Discovered new exit (range 10) 623 | -10/Materials | Discovered new exit (range 14) 833 | -10/Materials | Discovered new exit (range 15) 1368 | -10/Materials | Discovered new exit (range 5) 1377 | -10/Materials | Entered Mines 1393 | -10/Mines | Escorted by a lone wolf Derelict 1413 | -10/Mines | Learned location of Storage (-7) 1542 | -10/Mines | Core integrity fell below 50% 1821 | -10/Mines | Received a Rocket Launcher from a helpful Derelict 1869 | -10/Mines | Discovered new exit (range 10) 2499 | -10/Mines | Discovered new exit (range 12) 2703 | -10/Mines | Discovered new exit (range 6) 2998 | -10/Mines | Deemed a non-threat by the Exiles lab entrance 2998 | -10/Mines | Discovered new exit (range 6) 3010 | -10/Mines | Entered Exiles 3080 | -10/Exiles | Met 8R-AWN 3129 | -10/Exiles | Met EX-HEX 3209 | -10/Exiles | Met EX-BIN 3307 | -10/Exiles | Met EX-DEC 3376 | -10/Exiles | Learned location of Zion (-7) 3497 | -10/Exiles | Visited The Gauntlet 4145 | -10/Exiles | Discovered new exit (range 10) 4175 | -10/Exiles | Entered Mines 4265 | -9/Mines | Assembled infested the area 4270 | -9/Mines | Assisted by a Guerilla fighting off Assembled 4276 | -9/Mines | Core integrity fell below 20% 4297 | -9/Mines | Destroyed by D-53 Grenadier with Mini Grenade Launcher Last Messages --------------- 04274_ as-50362 destroyed. 04274_ as-65155 destroyed. 04276_ Destroyed Asb. Hover Unit. 04276_ as-51351 destroyed. 04276_ as-26688 destroyed. 04279_ as-00163 destroyed. 04279_ as-64259 destroyed. 04279_ as-19282 destroyed. 04279_ as-03319 destroyed. 04281_ The unstable cave ceiling collapses. 04284_ as-04635 destroyed. 04284_ U-05 Engineer builds a Wall. 04289_ as-91629 destroyed. 04291_ Shotgun destroyed. 04291_ Imp. Ion Engine destroyed. 04292_ The unstable cave ceiling collapses. 04292_ U-05 Engineer lays Concrete. 04293_ as-70358 destroyed. 04294_ U-05 Engineer builds a Wall. 04295_ Lgt. Treads destroyed. Map ----- +----------------------------------------------------+ | | | | | | | | | | | | | | | | | | | | | | | | | | | | | ?????????????????????????????????????????????????? | | ?????????????????????????????????????????????????? | | ???????????????????#######???????????????????????? | | ??????????????????#########??????????????????????? | | ??????????????????### ####?????????????#####???? | | ?????????????????### #####??????????#######??? | | ?????????????????### #######??????#### ###??? | | ?????????????????## ######?????### ##??? | | ?????????????????## ####????## ###?? | | ??????????? #??#### ###????## ####? | | ?????????? ####### ######### ###? | | ?????????? ## @ ######### ##? | | ????? % ##? | | ???? ! =*! ##? | | ???? d #### # *%! ###? | | ???? d #### ### ## %! ###? | | ?????### ##### ## ### = ##? | | ?????## ##### ### #### ##? | | ?????### # ###### #### ##### ##? | | ?????"## # ##u######### ##### ##### ##? | | ??????# # ## ### ######?## ##### ##?## ##? | | ??????#########"### ##?????### ##?## ##?## ? | | ??????????##### ?## ##?????#### ###? ##?## | | ?????????????????## ##??????########??###??## #### | | ????????????????? #???????######???###??## #### | | ?????????????????### ??????????????????????## ##?? | | ?????????????????### ???????????????????????? ##?? | | ????????????????????????????????????????????? #?? | | ????????????????????????????????????????????? ???? | | ????????????????????????????????????????????? ???? | | ????????????????????????????????????????????? ???? | | ????????????????????????????????????????????? ???? | | ?????????????????????????????????????????????????? | | ?????????????????????????????????????????????????? | | ?????????????????????????????????????????????????? | | ?????????????????????????????????????????????????? | +----------------------------------------------------+ Best States ------------- Heat Dissipation 25 Energy Generation 12 Energy Capacity 265 Matter Stores 300 Matter Capacity 300 Sight Range 16 Terrain Scan Range 16 Terrain Scan Density 10 Evasion (%) 40 Recoil Reduction 2 Item Schematics ----------------- None Robot Schematics ------------------ None Fabricated ------------ Nothing Alien Tech Used ----------------- None Achievements -------------- Hunted Challenges ------------ None Game ------ Seed InertialMediumAmplifier Manual? 0 Play Time 00:21:32 Cumulative 83.6 hours Start 2024.05.23 @ 00:49:54 End 2024.05.23 @ 01:15:19 Sessions 1 Manual Loads 0 Difficulty Rogue Special Mode None Game No. 78 Rogue 73 Adventurer 5 Explorer 0 Win Type - Total 1 Types 1/0/0/0/0/0/0/0/0 Lore% 38 Gallery% 50 Achievement% 37 Wizard Run 0 Options --------- Layout 2 ASCII 0 Keyboard 0 Movement Mouse Keybinds 0 Fullscreen 2 Font 24/Smallcaps Map View 50x44 Zoom Use 0% Tactical HUD 1 Map Filters NONE Filters NONE Steam 1 RUN: 693b13be-bbbe-4941-a6cc-462206392f88